fUST/lending_fUST_20250927
["ID","MTS","AMOUNT","RATE_DAILY","PERIOD"]
[387832736,1758905440268,-258708.74006638,0.00043499,14]
[387832737,1758905440593,-359.0,0.00034631,2]
[387832738,1758905440604,-462.0,0.00034959,2]
[387832739,1758905440613,-159204.03201716,0.00043499,14]
[387832740,1758905440623,-500.0,0.00043499,120]
[387832741,1758905440632,-34132.17474726,0.000435,120]
[387832742,1758905440642,-255.90501161,0.000435,120]
[387832743,1758905440654,-514.49783052,0.000435,120]
[387832744,1758905440665,-603.519,0.000435,120]
[387832750,1758905442825,-27315.8314934,0.000435,120]
[387832751,1758905442868,-82.43504525,0.000435,120]
[387832777,1758905443824,-49005.47726733,0.000435,120]
[387832807,1758905445769,-807.57798228,0.000435,120]
[387832808,1758905445781,-234514.42105959,0.000435,120]
[387832809,1758905445790,-632815.82265126,0.000435,120]
[387832810,1758905445890,-639.16788215,0.000435,120]
[387832811,1758905445918,-778537.35109322,0.000435,120]
[387832812,1758905445927,-151.0,0.000435,14]
[387832813,1758905445939,-192.968453,0.000435,120]
[387832814,1758905445948,-151.0,0.000435,120]
[387832815,1758905445957,-151.0,0.000435,120]
[387832816,1758905445967,-151.0,0.000435,120]
[387832817,1758905445976,-151.0,0.000435,120]
[387832818,1758905445986,-151.0,0.000435,120]
[387832819,1758905445996,-151.0,0.000435,120]
[387832820,1758905446006,-151.0,0.000435,120]
[387832821,1758905446015,-151.0,0.000435,120]
[387832822,1758905446025,-167.969612,0.000435,120]
[387832823,1758905446035,-151.0,0.000435,120]
[387832824,1758905446044,-151.0,0.000435,120]
[387832825,1758905446054,-151.0,0.000435,120]
[387832826,1758905446063,-151.0,0.000435,120]
[387832827,1758905446073,-151.0,0.000435,120]
[387832828,1758905446082,-151.0,0.000435,120]
[387832829,1758905446091,-151.0,0.000435,15]
[387832830,1758905446100,-151.0,0.000435,120]
[387832831,1758905446111,-151.0,0.000435,120]
[387832832,1758905446210,-151.0,0.000435,120]
[387832833,1758905446219,-151.0,0.000435,120]
[387832834,1758905446228,-151.0,0.000435,120]
[387832835,1758905446238,-151.0,0.000435,120]
[387832836,1758905446247,-151.0,0.000435,120]
[387832837,1758905446256,-151.0,0.000435,120]
[387832838,1758905446265,-151.0,0.000435,120]
[387832839,1758905446275,-151.0,0.000435,120]
[387832840,1758905446285,-151.0,0.000435,120]
[387832841,1758905446294,-151.0,0.000435,30]
[387832842,1758905446303,-151.99309,0.000435,120]
[387832843,1758905446313,-151.0,0.000435,120]
[387832844,1758905446323,-151.0,0.000435,120]
[387832845,1758905446332,-151.0,0.000435,120]
[387832846,1758905446341,-151.0,0.000435,120]
[387832847,1758905446351,-151.0,0.000435,120]
[387832848,1758905446361,-157.284174,0.000435,120]
[387832849,1758905446371,-151.0,0.000435,120]
[387832850,1758905446381,-157.284174,0.000435,120]
[387832851,1758905446391,-157.284174,0.000435,120]
[387832852,1758905446401,-157.284174,0.000435,120]
[387832853,1758905446411,-412.416858,0.000435,120]
[387832854,1758905446421,-412.416858,0.000435,120]
[387832855,1758905446431,-412.416858,0.000435,120]
[387832856,1758905446440,-151.0,0.000435,120]
[387832857,1758905446450,-412.416858,0.000435,120]
[387832858,1758905446459,-151.0,0.000435,120]
[387832859,1758905446469,-151.0,0.000435,120]
[387832860,1758905446478,-151.0,0.000435,120]
[387832861,1758905446487,-151.0,0.000435,120]
[387832862,1758905446497,-151.0,0.000435,120]
[387832863,1758905446506,-151.0,0.000435,120]
[387832864,1758905446515,-151.0,0.000435,120]
[387832865,1758905446524,-151.0,0.000435,120]
[387832866,1758905446534,-388.953992,0.000435,120]
[387832867,1758905446544,-151.0,0.000435,120]
[387832868,1758905446554,-388.953992,0.000435,120]
[387832869,1758905446563,-388.953992,0.000435,120]
[387832870,1758905446573,-151.0,0.000435,120]
[387832871,1758905446582,-151.0,0.000435,120]
[387832872,1758905446591,-151.0,0.000435,120]
[387832873,1758905446601,-388.953992,0.000435,120]
[387832874,1758905446611,-151.0,0.000435,120]
[387832875,1758905446619,-151.0,0.000435,120]
[387832876,1758905446629,-451.667043,0.000435,120]
[387832877,1758905446638,-451.667043,0.000435,120]
[387832878,1758905446646,-451.667043,0.000435,120]
[387832879,1758905446655,-151.0,0.000435,120]
[387832880,1758905446665,-451.667043,0.000435,120]
[387832881,1758905446679,-151.0,0.000435,30]
[387832882,1758905446687,-151.0,0.000435,30]
[387832883,1758905446697,-151.0,0.000435,30]
[387832884,1758905446706,-151.0,0.000435,30]
[387832885,1758905446715,-151.00000023,0.000435,2]
[387832886,1758905446724,-151.0,0.000435,120]
[387832887,1758905446733,-151.0,0.000435,120]
[387832888,1758905446742,-151.441873,0.000435,120]
[387832889,1758905446752,-284.07561,0.000435,120]
[387832890,1758905446762,-284.07561,0.000435,120]
[387832891,1758905446771,-219.364541,0.000435,120]
[387832892,1758905446780,-284.07561,0.000435,120]
[387832893,1758905446789,-219.364541,0.000435,120]
[387832894,1758905446799,-320.01,0.00043562,120]
[387832895,1758905446808,-252.52103604,0.00043616,10]
[387832896,1758905446817,-151.0,0.00043629,3]
[387832897,1758905446827,-479.0,0.00043629,3]
[387832898,1758905446836,-161.73256297,0.00043629,3]
[387832899,1758905446846,-500.0,0.00043629,3]
[387832900,1758905446855,-168.0,0.00043682,2]
[387832901,1758905446865,-476.0,0.00043767,7]
[387832902,1758905446875,-476.0,0.00043792,7]
[387832903,1758905446884,-390.493545,0.00043836,2]
[387832904,1758905446894,-151.0,0.00043903,3]
[387832905,1758905446903,-479.0,0.00043903,3]
[387832906,1758905446912,-500.0,0.00043903,3]
[387832907,1758905446921,-175.0,0.00043994,2]
[387832908,1758905446930,-476.0,0.00043997,2]
[387832909,1758905446939,-160.0,0.00044,120]
[387832910,1758905446949,-417.15472785,0.00044,120]
[387832911,1758905446958,-6631.61,0.000441,14]
[387832912,1758905446967,-175.0,0.00044121,2]
[387832913,1758905446976,-202.0,0.0004414,64]
[387832914,1758905446985,-198.329618,0.00044177,3]
[387832915,1758905446995,-479.0,0.00044177,3]
[387832916,1758905447004,-500.0,0.00044177,3]
[387832917,1758905447013,-168.0,0.00044183,2]
[387832918,1758905447023,-476.0,0.00044327,2]
[387832919,1758905447033,-600.0,0.00044368,30]
[387832920,1758905447042,-168.0,0.00044416,2]
[387832921,1758905447051,-168.0,0.00044418,2]
[387832922,1758905447060,-479.0,0.00044451,3]
[387832923,1758905447069,-500.0,0.00044451,3]
[387832924,1758905447079,-476.0,0.00044462,2]
[387832925,1758905447088,-479.0,0.00044725,3]
[387832926,1758905447098,-500.0,0.00044725,3]
[387832927,1758905447108,-800.0,0.00044733,14]
[387832928,1758905447117,-800.0,0.00044745,14]
[387832929,1758905447127,-800.0,0.0004476,14]
[387832930,1758905447136,-800.0,0.0004476,14]
[387832931,1758905447145,-800.0,0.00044764,14]
[387832932,1758905447154,-800.0,0.00044765,14]
[387832933,1758905447163,-800.0,0.00044765,14]
[387832934,1758905447173,-800.0,0.00044768,14]
[387832935,1758905447182,-800.0,0.00044786,14]
[387832936,1758905447191,-599.04771631,0.00044842,10]
[387832937,1758905447200,-800.0,0.00044844,14]
[387832938,1758905447209,-800.0,0.00044847,14]
[387832939,1758905447219,-904.30157782,0.00044882,14]
[387832940,1758905447228,-800.0,0.00044893,14]
[387832941,1758905447237,-1111.1724851,0.000449,120]
[387832942,1758905447246,-1035.34404008,0.00044922,45]
[387832943,1758905447256,-800.0,0.00044926,14]
[387832944,1758905447266,-800.0,0.00044933,14]
[387832945,1758905447276,-978.0,0.00044958,2]
[387832946,1758905447287,-2160.0,0.00044958,2]
[387832947,1758905447297,-635.0,0.00044958,2]
[387832948,1758905447306,-150.0,0.00044958,2]
[387832949,1758905447316,-150.0,0.00044958,2]
[387832950,1758905447325,-800.0,0.00044968,14]
[387832951,1758905447335,-800.0,0.00044973,14]
[387832952,1758905447413,-800.0,0.00044979,14]
[387832953,1758905447423,-800.0,0.00044993,14]
[387832954,1758905447433,-479.0,0.00044999,3]
[387832955,1758905447443,-500.0,0.00044999,3]
[387832956,1758905447453,-14584.60991691,0.00045,2]
[387832957,1758905447462,-869.41210145,0.00045,20]
[387832958,1758905447472,-217.88893344,0.00045,120]
[387832959,1758905447482,-10926.38743112,0.00045,120]
[387832960,1758905447492,-151.62020004,0.00045,120]
[387832961,1758905447501,-1300.05014365,0.00045,60]
[387832962,1758905447511,-2000.89,0.00045,120]
[387832963,1758905447521,-150.694,0.00045004,2]
[387832964,1758905447531,-5000.0,0.000452,120]
[387832965,1758905447540,-1000.0,0.00045205,120]
[387832966,1758905447549,-1000.0,0.00045205,120]
[387832967,1758905447559,-1000.0,0.00045205,120]
[387832968,1758905447568,-332.85973366,0.00045205,120]
[387832969,1758905447578,-4587.0,0.00045256,120]
[387832970,1758905447587,-479.0,0.00045273,3]
[387832971,1758905447597,-500.0,0.00045273,3]
[387832972,1758905447608,-308.8629,0.000454,30]
[387832973,1758905447618,-250.0,0.00045439,7]
[387832974,1758905447631,-250.0,0.00045439,7]
[387832975,1758905447640,-250.0,0.00045439,7]
[387832976,1758905447650,-250.0,0.00045439,7]
[387832977,1758905447667,-250.0,0.00045439,7]
[387832978,1758905447681,-250.0,0.00045439,7]
[387832979,1758905447690,-250.0,0.00045439,7]
[387832980,1758905447700,-250.0,0.00045439,7]
[387832981,1758905447711,-250.0,0.00045439,7]
[387832982,1758905447721,-250.0,0.00045439,7]
[387832983,1758905447731,-250.0,0.00045439,7]
[387832984,1758905447740,-250.0,0.00045439,7]
[387832985,1758905447749,-250.0,0.00045439,7]
[387832986,1758905447759,-179245.60695977,0.0004544,7]
[387832987,1758905447769,-479.0,0.00045547,3]
[387832988,1758905447779,-500.0,0.00045547,3]
[387832989,1758905447790,-159.60929336,0.00045634,120]
[387832990,1758905447800,-479.0,0.00045821,3]
[387832991,1758905447809,-500.0,0.00045821,3]
[387832992,1758905447819,-200.0,0.00046,120]
[387832993,1758905447829,-6631.61,0.00046,14]
[387832994,1758905447838,-417.15472785,0.00046,7]
[387832995,1758905447848,-479.0,0.00046095,3]
[387832996,1758905447859,-210.26459046,0.00046095,3]
[387832997,1758905447868,-166.47093547,0.00046193,30]
[387832999,1758905447877,-1215.67563946,0.00046339,28]
[387833001,1758905447887,-479.0,0.00046369,3]
[387833003,1758905447897,-1035.34404008,0.00046394,48]
[387833004,1758905447906,-7912.29073231,0.0004644,3]
[387833005,1758905447915,-10001.34974489,0.0004644,90]
[387833006,1758905447924,-331524.56021527,0.0004644,30]
[387833059,1758905971034,-269.73210003,0.000199,2]
[387833060,1758906007813,-648.01254458,0.000199,2]
[387833065,1758906186871,628.76914588,0.000199,2]
[387833081,1758906358092,283.50632288,0.000199,2]
[387833082,1758906359170,-283.50632288,0.00022949,2]
[387833083,1758906379290,-258.36363472,0.00024921,2]
[387833084,1758906404421,-241.14828942,0.00024921,13]
[387833085,1758906529828,-713.5102824,0.000199,2]
[387833086,1758906549007,459.88523132,0.00021372,2]
[387833087,1758906571762,459.88523132,0.00021372,2]
[387833089,1758906594962,459.88523132,0.00021372,2]
[387833092,1758906617805,459.88523132,0.00021372,2]
[387833094,1758906632005,-713.51028235,0.00021372,2]
[387833095,1758906632014,-713.51028235,0.00022844,2]
[387833096,1758906632024,-713.51028235,0.00024316,2]
[387833097,1758906632034,-500.90471863,0.00025173,2]
[387833098,1758906632046,-500.0,0.00025173,2]
[387833099,1758906632055,-1200.0,0.0002518,2]
[387833100,1758906632064,-313.39644455,0.00025181,2]
[387833101,1758906632075,-500.0,0.00025181,2]
[387833102,1758906632085,-266.4186263,0.00025181,2]
[387833103,1758906632095,-500.0,0.00025181,2]
[387833104,1758906632104,-300.0,0.00025181,2]
[387833105,1758906632113,-300.0,0.00025181,2]
[387833106,1758906632122,-300.0,0.00025181,2]
[387833107,1758906632131,-300.0,0.00025181,2]
[387833108,1758906632142,-500.0,0.00025182,2]
[387833109,1758906632151,-500.0,0.00025182,2]
[387833110,1758906632162,-500.0,0.00025182,2]
[387833111,1758906632172,-500.0,0.00025182,2]
[387833112,1758906632181,-500.0,0.00025182,2]
[387833113,1758906632191,-519.20677646,0.00025182,2]
[387833114,1758906632201,-400.96824974,0.00025182,2]
[387833115,1758906632210,-500.0,0.00025182,2]
[387833116,1758906632219,-500.0,0.00025182,2]
[387833117,1758906632229,-500.0,0.00025182,2]
[387833118,1758906632238,-598.70559932,0.00025182,2]
[387833119,1758906632247,-520.18676162,0.00025182,2]
[387833120,1758906632256,-500.0,0.00025182,2]
[387833121,1758906632265,-450.0,0.00025182,2]
[387833122,1758906632274,-500.0,0.00025182,2]
[387833123,1758906632283,-500.0,0.00025182,2]
[387833124,1758906632292,-500.0,0.00025182,2]
[387833125,1758906632301,-500.0,0.00025182,2]
[387833126,1758906632310,-500.0,0.00025182,2]
[387833127,1758906632320,-500.0,0.00025182,2]
[387833128,1758906632329,-500.0,0.00025182,2]
[387833129,1758906632339,-500.0,0.00025182,2]
[387833130,1758906632348,-500.0,0.00025182,2]
[387833131,1758906632357,-500.0,0.00025182,2]
[387833132,1758906632367,-500.0,0.00025182,2]
[387833133,1758906632376,-500.0,0.00025182,2]
[387833134,1758906632385,-500.0,0.00025182,2]
[387833135,1758906632395,-500.0,0.00025182,2]
[387833136,1758906632404,-500.0,0.00025182,2]
[387833137,1758906632414,-500.0,0.00025182,2]
[387833138,1758906632423,-500.0,0.00025182,2]
[387833139,1758906632432,-500.0,0.00025182,2]
[387833140,1758906632442,-500.0,0.00025182,2]
[387833141,1758906632452,-500.0,0.00025182,2]
[387833142,1758906632462,-500.0,0.00025182,2]
[387833143,1758906632471,-500.0,0.00025182,2]
[387833144,1758906632480,-500.0,0.00025182,2]
[387833145,1758906632490,-500.0,0.00025182,2]
[387833146,1758906632499,-500.0,0.00025182,2]
[387833147,1758906632509,-528.27331019,0.00025182,2]
[387833148,1758906632519,-500.0,0.00025182,2]
[387833149,1758906632529,-500.0,0.00025182,2]
[387833150,1758906632538,-500.0,0.00025182,2]
[387833151,1758906632547,-500.0,0.00025182,2]
[387833152,1758906632556,-500.0,0.00025182,2]
[387833153,1758906632566,-500.0,0.00025182,2]
[387833154,1758906632575,-500.0,0.00025182,2]
[387833155,1758906632585,-500.0,0.00025182,2]
[387833156,1758906632595,-500.0,0.00025182,2]
[387833157,1758906632605,-500.0,0.00025182,2]
[387833158,1758906632614,-500.0,0.00025182,2]
[387833159,1758906632623,-500.0,0.00025182,2]
[387833160,1758906632632,-500.0,0.00025182,2]
[387833161,1758906632642,-500.0,0.00025182,2]
[387833162,1758906632651,-500.0,0.00025182,2]
[387833163,1758906632662,-500.0,0.00025182,2]
[387833164,1758906632671,-500.0,0.00025182,2]
[387833165,1758906632681,-500.0,0.00025182,2]
[387833166,1758906632690,-500.0,0.00025182,2]
[387833167,1758906632699,-500.0,0.00025182,2]
[387833168,1758906632708,-500.0,0.00025182,2]
[387833169,1758906632718,-500.0,0.00025182,2]
[387833170,1758906632727,-500.0,0.00025182,2]
[387833171,1758906632737,-500.0,0.00025182,2]
[387833172,1758906632745,-500.0,0.00025182,2]
[387833173,1758906632755,-500.0,0.00025182,2]
[387833174,1758906632763,-500.0,0.00025182,2]
[387833175,1758906632772,-500.0,0.00025182,2]
[387833176,1758906632781,-500.0,0.00025182,2]
[387833178,1758906632791,-500.0,0.00025182,2]
[387833180,1758906632800,-500.0,0.00025182,2]
[387833182,1758906632810,-500.0,0.00025182,2]
[387833184,1758906632819,-500.0,0.00025182,2]
[387833185,1758906632829,-500.0,0.00025182,2]
[387833187,1758906632838,-500.0,0.00025182,2]
[387833189,1758906632848,-500.0,0.00025182,2]
[387833190,1758906632858,-500.0,0.00025182,2]
[387833191,1758906632867,-500.0,0.00025182,2]
[387833193,1758906632877,-500.0,0.00025182,2]
[387833195,1758906632891,-500.0,0.00025182,2]
[387833197,1758906632901,-343.82059699,0.00025182,2]
[387833198,1758906632911,-500.0,0.00025182,2]
[387833199,1758906632920,-500.0,0.00025182,2]
[387833200,1758906632930,-500.0,0.00025182,2]
[387833201,1758906632940,-581.85798189,0.00025182,2]
[387833202,1758906632949,-500.0,0.00025182,2]
[387833204,1758906632959,-500.0,0.00025182,2]
[387833206,1758906632969,-500.0,0.00025182,2]
[387833207,1758906632979,-500.0,0.00025182,2]
[387833209,1758906632989,-500.0,0.00025182,2]
[387833210,1758906633000,-500.0,0.00025182,2]
[387833211,1758906633013,-500.0,0.00025182,2]
[387833212,1758906633023,-500.0,0.00025182,2]
[387833213,1758906633034,-500.0,0.00025182,2]
[387833214,1758906633044,-500.0,0.00025182,2]
[387833215,1758906633055,-500.0,0.00025182,2]
[387833216,1758906633065,-500.0,0.00025182,2]
[387833218,1758906633075,-500.0,0.00025182,2]
[387833219,1758906633086,-500.0,0.00025182,2]
[387833220,1758906633096,-500.0,0.00025182,2]
[387833221,1758906633106,-500.0,0.00025182,2]
[387833224,1758906633116,-500.0,0.00025182,2]
[387833233,1758906633195,-500.0,0.00025182,2]
[387833236,1758906633215,-500.0,0.00025182,2]
[387833238,1758906633225,-500.0,0.00025182,2]
[387833240,1758906633235,-500.0,0.00025182,2]
[387833242,1758906633245,-500.0,0.00025182,2]
[387833244,1758906633254,-500.0,0.00025182,2]
[387833246,1758906633264,-437.32974136,0.00025182,2]
[387833247,1758906633274,-500.0,0.00025182,2]
[387833248,1758906633284,-500.0,0.00025182,2]
[387833249,1758906633293,-500.0,0.00025182,2]
[387833250,1758906633302,-500.0,0.00025182,2]
[387833251,1758906633313,-342.42866466,0.00025182,2]
[387833253,1758906633322,-500.0,0.00025182,2]
[387833255,1758906633332,-500.0,0.00025182,2]
[387833257,1758906633341,-500.0,0.00025182,2]
[387833259,1758906633350,-500.0,0.00025182,2]
[387833261,1758906633360,-500.0,0.00025182,2]
[387833263,1758906633370,-500.0,0.00025182,2]
[387833265,1758906633380,-500.0,0.00025182,2]
[387833267,1758906633389,-500.0,0.00025182,2]
[387833269,1758906633399,-500.0,0.00025182,2]
[387833271,1758906633408,-500.0,0.00025182,2]
[387833273,1758906633417,-500.0,0.00025182,2]
[387833275,1758906633426,-500.0,0.00025182,2]
[387833277,1758906633436,-500.0,0.00025182,2]
[387833279,1758906633445,-500.0,0.00025182,2]
[387833281,1758906633455,-262.88510658,0.00025182,2]
[387833283,1758906633464,-500.0,0.00025182,2]
[387833285,1758906633474,-500.0,0.00025182,2]
[387833287,1758906633484,-500.0,0.00025182,2]
[387833289,1758906633494,-418.09834517,0.00025182,2]
[387833290,1758906633503,-32851.5337515,0.00025183,2]
[387833292,1758906633512,-535.66,0.00025185,3]
[387833294,1758906633521,-267.83,0.00025185,3]
[387833296,1758906633531,-803.54,0.00025185,3]
[387833298,1758906633541,-1200.0,0.00025192,2]
[387833300,1758906633551,-50000.0,0.00025193,2]
[387833302,1758906633560,-1071.33,0.00025195,3]
[387833304,1758906633570,-500.0,0.00025205,2]
[387833306,1758906633581,-500.0,0.00025205,2]
[387833308,1758906633590,-500.0,0.00025205,2]
[387833310,1758906633600,-500.0,0.00025205,2]
[387833312,1758906633610,-500.0,0.00025205,2]
[387833314,1758906633620,-500.0,0.00025205,2]
[387833316,1758906633630,-500.0,0.00025205,2]
[387833318,1758906633640,-500.0,0.00025205,2]
[387833320,1758906633649,-238.590718,0.00025222,2]
[387833322,1758906633660,-181.839249,0.00025366,2]
[387833324,1758906633670,-500.0,0.00025721,2]
[387833326,1758906633680,-713.51028235,0.00025788,4]
[387833328,1758906633690,-154.914,0.00026289,12]
[387833330,1758906633700,-160.0,0.00026403,2]
[387833332,1758906633709,-160.0,0.00026403,2]
[387833334,1758906633719,-417.15472785,0.00026403,2]
[387833336,1758906633729,-160.0,0.00026405,2]
[387833338,1758906633739,-1071.32,0.00026555,3]
[387833340,1758906633749,-535.66,0.00026555,3]
[387833342,1758906633759,-2142.66,0.00026565,3]
[387833344,1758906633769,-713.51028235,0.00027259,7]
[387833346,1758906633785,-420.0,0.00027274,2]
[387833348,1758906633795,-822.0,0.00027286,2]
[387833350,1758906633805,-280.0,0.00027526,2]
[387833352,1758906633821,-235.0944392,0.00028367,2]
[387833354,1758906633833,-152.92,0.00028581,5]
[387833356,1758906633851,-500.0,0.00029183,5]
[387833358,1758906633871,-587.0,0.00029542,2]
[387833360,1758906633881,-356.61553702,0.00029564,5]
[387833362,1758906633891,-500.0,0.00029731,5]
[387833363,1758906633900,-713.51028235,0.00030203,13]
[387833364,1758906633910,-713.51028235,0.00031675,16]
[387833365,1758906633920,-686.44917476,0.00031702,2]
[387833366,1758906633930,-3750.12138762,0.00031812,2]
[387833367,1758906634073,-500.0,0.00025181,2]
[387833368,1758906634085,-2798.47143121,0.00031812,2]
[387833370,1758906634095,-32851.5337515,0.00031892,2]
[387833371,1758906634105,-20121.26481714,0.00031902,2]
[387833372,1758906634116,-73534.82075203,0.00031902,2]
[387833459,1758906637865,-388.68429498,0.00025181,2]
[387833460,1758906637874,-500.0,0.00025181,2]
[387833461,1758906637884,-500.0,0.00025181,2]
[387833462,1758906637893,-500.0,0.00025181,2]
[387833463,1758906637903,-500.0,0.00025181,2]
[387833464,1758906637912,-500.0,0.00025181,2]
[387833465,1758906637921,-500.0,0.00025181,2]
[387833466,1758906637930,-500.0,0.00025181,2]
[387833467,1758906637939,-500.0,0.00025181,2]
[387833468,1758906637949,-500.0,0.00025181,2]
[387833469,1758906637958,-500.0,0.00025181,2]
[387833470,1758906637967,-966.45314366,0.00031902,2]
[387833471,1758906637978,-2764.25653728,0.00031902,2]
[387833472,1758906638002,-99722.40725889,0.00031902,2]
[387833473,1758906638013,-370000.0,0.00031912,2]
[387833474,1758906638023,-500.0,0.00031973,5]
[387833476,1758906638033,-501.0381757,0.00031973,5]
[387833477,1758906638043,-500.0,0.00031973,5]
[387833478,1758906638052,-500.0,0.00031973,5]
[387833479,1758906638061,-412.0,0.00031997,2]
[387833480,1758906638070,-4793.44,0.00032,2]
[387833481,1758906638080,-217.99592755,0.00032,120]
[387833482,1758906638089,-169.62692056,0.00032,120]
[387833483,1758906638098,-285.85248493,0.00032,120]
[387833484,1758906638108,-480.0,0.00032001,120]
[387833485,1758906638117,-169.62692056,0.000323,120]
[387833486,1758906638127,-1000.0,0.00032521,5]
[387833487,1758906638208,-1000.0,0.00032521,5]
[387833488,1758906638218,-1000.0,0.00032521,5]
[387833489,1758906638227,-150.0,0.00032876,2]
[387833490,1758906638236,-300.0,0.00032876,2]
[387833491,1758906638246,-450.0,0.00032876,2]
[387833492,1758906638255,-600.0,0.00032876,2]
[387833493,1758906638265,-159.26782013,0.00032876,2]
[387833494,1758906638274,-351.875631,0.00032877,2]
[387833495,1758906638284,-184.53127817,0.00033068,5]
[387833496,1758906638293,-1500.0,0.00033068,5]
[387833497,1758906638302,-1003.24530109,0.00033068,5]
[387833498,1758906638312,-713.51028235,0.00033147,19]
[387833499,1758906638321,-915.61377862,0.00033616,5]
[387833500,1758906638330,-159.090061,0.0003372,2]
[387833501,1758906638340,-686.44917474,0.00033752,2]
[387833502,1758906638349,-304.3849732,0.00033873,2]
[387833503,1758906638358,-713.51028235,0.00034619,23]
[387833504,1758906638367,-686.44917474,0.00035801,2]
[387833505,1758906638376,-713.51028235,0.00036091,26]
[387833506,1758906638386,-713.51028235,0.00037563,29]
[387833507,1758906638396,-347.8685408,0.00037655,2]
[387833508,1758906638405,-686.44917474,0.00037851,2]
[387833509,1758906638413,-100000.0,0.00038,26]
[387833510,1758906638423,-351.875631,0.00038356,2]
[387833511,1758906638432,-255.93391761,0.00038356,2]
[387833512,1758906638442,-6548.59281883,0.00038376,2]
[387833513,1758906638451,-72267.8362021,0.00038998,2]
[387833514,1758906638460,-100000.0,0.00039,26]
[387833515,1758906638469,-500.0,0.00039,5]
[387833516,1758906638479,-500.0,0.00039,5]
[387833517,1758906638487,-500.0,0.00039,5]
[387833518,1758906638497,-500.0,0.00039,5]
[387833519,1758906638507,-500.0,0.00039,5]
[387833520,1758906638516,-150.0,0.00039011,5]
[387833521,1758906638525,-713.51028235,0.00039034,32]
[387833522,1758906638535,-168.0,0.00039294,2]
[387833524,1758906638544,-1000.0,0.00039548,5]
[387833526,1758906638553,-1000.0,0.00039548,5]
[387833527,1758906638561,-501.20991974,0.00039548,5]
[387833528,1758906638571,-500.0,0.00039548,5]
[387833529,1758906638580,-250.0,0.00039559,5]
[387833530,1758906638589,-168.0,0.0003979,2]
[387833531,1758906638598,-686.44917474,0.000399,2]
[387833532,1758906638607,-895.0,0.0004,10]
[387833533,1758906638616,-100000.0,0.0004,26]
[387833534,1758906638625,-1517.39969314,0.00040096,5]
[387833535,1758906638634,-1500.0,0.00040096,5]
[387833536,1758906638644,-350.0,0.00040107,5]
[387833537,1758906638653,-168.0,0.0004047,2]
[387833538,1758906638662,-534.14478252,0.00040503,120]
[387833539,1758906638671,-713.51028235,0.00040506,35]
[387833540,1758906638680,-500.0,0.00040644,5]
[387833541,1758906638690,-100000.0,0.00041,26]
[387833542,1758906638699,-168.0,0.0004104,2]
[387833543,1758906638709,-500.0,0.00041096,120]
[387833544,1758906638718,-500.02,0.00041096,120]
[387833545,1758906638727,-168.0,0.000411,2]
[387833546,1758906638737,-151.0,0.000412,10]
[387833547,1758906638746,-500.0,0.0004137,120]